fUST/lending_fUST_20260331
["ID","MTS","AMOUNT","RATE_DAILY","PERIOD"]
[419106135,1774900239196,-353.34455193,0.00024885,2]
[419106136,1774900239206,-500.0,0.00024885,2]
[419106137,1774900239215,-500.0,0.00024885,2]
[419106139,1774900239224,-500.0,0.00024885,2]
[419106140,1774900239234,-500.0,0.00024885,2]
[419106141,1774900239243,-500.0,0.00024885,2]
[419106143,1774900239252,-500.0,0.00024885,2]
[419106145,1774900239261,-500.0,0.00024885,2]
[419106147,1774900239270,-500.0,0.00024885,2]
[419106149,1774900239280,-500.0,0.00024885,2]
[419106151,1774900239289,-500.0,0.00024885,2]
[419106153,1774900239298,-500.0,0.00024885,2]
[419106155,1774900239307,-500.0,0.00024885,2]
[419106158,1774900239317,-500.0,0.00024885,2]
[419106160,1774900239326,-500.0,0.00024885,2]
[419106162,1774900239335,-500.0,0.00024885,2]
[419106164,1774900239344,-500.0,0.00024885,2]
[419106166,1774900239354,-500.0,0.00024885,2]
[419106168,1774900239364,-500.0,0.00024885,2]
[419106170,1774900239373,-500.0,0.00024885,2]
[419106172,1774900239382,-500.0,0.00024885,2]
[419106174,1774900239392,-500.0,0.00024885,2]
[419106176,1774900239401,-500.0,0.00024885,2]
[419106178,1774900239410,-500.0,0.00024885,2]
[419106180,1774900239420,-500.0,0.00024885,2]
[419106182,1774900239429,-500.0,0.00024885,2]
[419106184,1774900239440,-500.0,0.00024885,2]
[419106186,1774900239450,-500.0,0.00024885,2]
[419106188,1774900239459,-500.0,0.00024885,2]
[419106190,1774900239468,-500.0,0.00024888,2]
[419106192,1774900239477,-500.0,0.00024888,2]
[419106194,1774900239487,-172.88108055,0.00024888,2]
[419106196,1774900239497,-500.0,0.00024888,2]
[419106207,1774900239595,-500.0,0.00024888,2]
[419106209,1774900239607,-500.0,0.00024888,2]
[419106211,1774900239617,-274.18536348,0.00024888,2]
[419106214,1774900239626,-190908.07623519,0.00024889,2]
[419106216,1774900239640,-41202.74621794,0.00024889,2]
[419106255,1774900240629,-6631.5,0.00024889,2]
[419106280,1774900243493,-196.38,0.00024879,10]
[419106282,1774900243504,-2367.3153688,0.00024889,2]
[419106293,1774900246172,-287.55164371,0.00022633,2]
[419106294,1774900246182,-41971.21886928,0.00024889,2]
[419106295,1774900338101,912.70858258,0.0003,120]
[419106296,1774900339375,500.0,0.0003,120]
[419106297,1774900339841,500.0,0.0003,120]
[419106298,1774900340301,500.0,0.0003,120]
[419106299,1774900340772,500.0,0.0003,120]
[419106300,1774900341234,500.0,0.0003,120]
[419106301,1774900341717,500.0,0.0003,120]
[419106302,1774900342236,500.0,0.0003,120]
[419106303,1774900342689,500.0,0.0003,120]
[419106304,1774900343144,500.0,0.0003,120]
[419106305,1774900343617,500.0,0.0003,120]
[419106306,1774900344109,500.0,0.0003,120]
[419106307,1774900349077,500.0,0.0003,120]
[419106308,1774900349542,500.0,0.0003,120]
[419106309,1774900350054,500.0,0.0003,120]
[419106310,1774900367275,500.0,0.0003,120]
[419106311,1774900367738,500.0,0.0003,120]
[419106312,1774900368202,500.0,0.0003,120]
[419106313,1774900368674,500.0,0.0003,120]
[419106314,1774900369120,500.0,0.0003,120]
[419106315,1774900369609,500.0,0.0003,120]
[419106316,1774900370087,500.0,0.0003,120]
[419106320,1774900922814,-2567.35328139,0.00013426,8]
[419108598,1774901208277,-2003.18146595,0.0003499,3]
[419108600,1774901208308,-2078.49374519,0.0003499,7]
[419108601,1774901208337,-25000.0,0.0003499,4]
[419108603,1774901208367,-155.556417,0.0003499,7]
[419108605,1774901208397,-180.03572105,0.0003499,7]
[419108607,1774901208425,-9000.0,0.0003499,7]
[419108608,1774901208453,-20288.56440364,0.0003499,5]
[419108610,1774901208482,-611.70155883,0.0003499,5]
[419108612,1774901208513,-1265.27427958,0.0003499,5]
[419108614,1774901208543,-174456.10202944,0.0003499,5]
[419108615,1774901208571,-253.17002219,0.0003499,12]
[419108617,1774901208599,-500.0,0.0003499,120]
[419108619,1774901208628,-635.6682,0.0003499,120]
[419108620,1774901208655,-635.6682,0.0003499,120]
[419108622,1774901208686,-181.56552146,0.0003499,60]
[419108624,1774901208715,-223.0,0.0003499,120]
[419108626,1774901208745,-427.40512436,0.0003499,30]
[419108627,1774901208773,-211.70532755,0.0003499,30]
[419108629,1774901208801,-307.40754118,0.0003499,120]
[419108631,1774901208828,-169.13169231,0.0003499,120]
[419108633,1774901208856,-244.76218027,0.0003499,120]
[419108634,1774901208884,-254.1498959,0.0003499,120]
[419108636,1774901208913,-329.50642247,0.0003499,30]
[419108638,1774901208941,-1110.5534056,0.0003499,120]
[419108639,1774901208968,-632.29962577,0.0003499,120]
[419108641,1774901208995,-905.60948342,0.0003499,30]
[419108643,1774901209021,-200.0,0.0003499,120]
[419108644,1774901209048,-904.75102241,0.0003499,120]
[419108646,1774901209075,-221.10297678,0.0003499,120]
[419108648,1774901209102,-433.59127306,0.0003499,60]
[419108649,1774901209128,-352.96034588,0.0003499,30]
[419108651,1774901209155,-165.10383286,0.0003499,30]
[419108653,1774901209181,-1104.86831149,0.0003499,120]
[419108654,1774901209208,-191.05838517,0.0003499,120]
[419108656,1774901209234,-1026.4319583,0.0003499,30]
[419108658,1774901209260,-1038.88559889,0.0003499,120]
[419108659,1774901209287,-200.00731302,0.0003499,30]
[419108661,1774901209313,-290.94292045,0.0003499,30]
[419108663,1774901209340,-182.49015717,0.0003499,120]
[419108665,1774901209368,-838.91412174,0.0003499,120]
[419108666,1774901209395,-238.04111033,0.0003499,120]
[419108668,1774901209422,-10139.79507379,0.0003499,31]
[419108670,1774901209449,-9982.47061564,0.0003499,60]
[419108671,1774901209475,-519.32867819,0.0003499,120]
[419108673,1774901209502,-646.3036863,0.0003499,120]
[419108675,1774901209530,-1000.0,0.0003499,7]
[419108676,1774901209556,-20000.0,0.0003499,7]
[419108678,1774901209584,-5616.67659125,0.0003499,7]
[419108683,1774901209612,-7359.80311157,0.0003499,7]
[419108685,1774901209765,-1001.82770722,0.0003499,7]
[419108687,1774901209793,-34489.8005084,0.0003499,7]
[419108688,1774901209820,-157.709582,0.0003499,7]
[419108690,1774901209848,-242.0,0.0003499,30]
[419108692,1774901209876,-180.35382125,0.0003499,7]
[419108693,1774901209902,-3005.47925703,0.0003499,7]
[419108695,1774901209928,-8845.87535979,0.0003499,7]
[419108697,1774901209954,-150.34543848,0.0003499,7]
[419108699,1774901209980,-5042.06848219,0.0003499,120]
[419108700,1774901210007,-52733.82532011,0.0003499,7]
[419108702,1774901210034,-200.0,0.0003499,120]
[419108704,1774901210061,-303.1750867,0.0003499,120]
[419108705,1774901210087,-32881.55,0.0003499,120]
[419108707,1774901210113,-19538.82228986,0.0003499,7]
[419108709,1774901210140,-205.39,0.0003499,120]
[419108711,1774901210170,-211.06638543,0.0003499,120]
[419108712,1774901210197,-211.06638543,0.0003499,120]
[419108714,1774901210225,-211.06638543,0.0003499,120]
[419108716,1774901210254,-777.04671123,0.0003499,120]
[419108718,1774901210284,-200.79591,0.0003499,7]
[419108720,1774901210311,-200.79591,0.0003499,7]
[419108722,1774901210337,-200.79591,0.0003499,7]
[419108723,1774901210363,-200.79591,0.0003499,7]
[419108725,1774901210390,-200.79591,0.0003499,7]
[419108727,1774901210417,-200.79591,0.0003499,7]
[419108729,1774901210443,-200.79591,0.0003499,7]
[419108731,1774901210469,-200.79591,0.0003499,7]
[419108732,1774901210495,-200.79591,0.0003499,7]
[419108734,1774901210521,-200.79591,0.0003499,7]
[419108736,1774901210547,-200.79591,0.0003499,7]
[419108738,1774901210573,-200.79591,0.0003499,7]
[419108740,1774901210599,-200.79591,0.0003499,7]
[419108742,1774901210627,-200.79591,0.0003499,7]
[419108743,1774901210655,-200.79591,0.0003499,7]
[419108745,1774901210685,-200.79591,0.0003499,7]
[419108747,1774901210713,-200.79591,0.0003499,7]
[419108749,1774901210741,-200.79591,0.0003499,7]
[419108751,1774901210768,-200.79591,0.0003499,7]
[419108753,1774901210795,-200.795914,0.0003499,7]
[419108754,1774901210823,-250.0,0.0003499,10]
[419108756,1774901210850,-284.628843,0.0003499,10]
[419108758,1774901210878,-151.0,0.0003499,7]
[419108760,1774901210906,-151.0,0.0003499,7]
[419108762,1774901210935,-151.0,0.0003499,7]
[419108764,1774901210962,-151.0,0.0003499,7]
[419108766,1774901210988,-151.0,0.0003499,7]
[419108767,1774901211015,-151.0,0.0003499,7]
[419108769,1774901211041,-203.39768,0.0003499,7]
[419110075,1774901259186,-300.0,0.00023187,10]
[419110077,1774901259215,-300.0,0.00023187,10]
[419110079,1774901259243,-300.0,0.00023187,10]
[419110080,1774901259271,-300.0,0.00023187,10]
[419110082,1774901259300,-300.0,0.00023187,10]
[419110084,1774901259327,-300.0,0.00023187,10]
[419110086,1774901259356,-300.0,0.00023187,10]
[419110087,1774901259384,-300.0,0.00023187,10]
[419110089,1774901259412,-300.0,0.00023187,10]
[419110091,1774901259440,-300.0,0.00023187,10]
[419110093,1774901259469,-300.0,0.00023187,10]
[419110094,1774901259497,-300.0,0.00023187,10]
[419110096,1774901259524,-300.0,0.00023187,10]
[419110098,1774901259553,-300.0,0.00023187,10]
[419110099,1774901259582,-300.0,0.00023187,10]
[419110101,1774901259609,-163.65,0.00024477,10]
[419110103,1774901259645,-196.0,0.00024795,14]
[419110105,1774901259677,-600.0,0.00025077,10]
[419110106,1774901259703,-2530.0938282,0.00026,30]
[419110107,1774901259731,-169.0,0.00026986,22]
[419110108,1774901259758,-160.0,0.00027412,14]
[419110109,1774901259786,-500.0,0.00027444,10]
[419110110,1774901259812,-160.0,0.00027567,14]
[419110111,1774901259841,-720.0,0.00027585,30]
[419110112,1774901259868,-160.0,0.00027648,14]
[419110113,1774901259897,-656.0892002,0.00028051,14]
[419110114,1774901259924,-633.19915639,0.00028051,14]
[419110115,1774901259950,-168.51172858,0.00028104,14]
[419110116,1774901259980,-656.0892002,0.0002813,14]
[419110118,1774901260007,-633.19915639,0.0002813,14]
[419110119,1774901260036,-656.0892002,0.00028209,14]
[419110121,1774901260063,-633.19915639,0.00028209,14]
[419110123,1774901260092,-656.0892002,0.00028289,14]
[419110124,1774901260119,-633.19915639,0.00028289,14]
[419110126,1774901260146,-196.61065588,0.00028323,14]
[419110128,1774901260172,-208.02453531,0.00028323,14]
[419110130,1774901260201,-656.0892002,0.00028368,14]
[419110131,1774901260228,-633.19915639,0.00028368,14]
[419110133,1774901260254,-208.0245353,0.0002837,60]
[419110135,1774901260283,-656.0892002,0.00028448,14]
[419110136,1774901260311,-633.19915639,0.00028448,14]
[419110138,1774901260337,-168.51172858,0.00028487,14]
[419110140,1774901260363,-158.0,0.00028494,30]
[419110141,1774901260390,-155.0,0.00028494,30]
[419110143,1774901260416,-154.0,0.00028494,30]
[419110145,1774901260441,-154.0,0.00028494,30]
[419110147,1774901260469,-656.0892002,0.00028527,30]
[419110148,1774901260495,-633.19915639,0.00028527,30]
[419110150,1774901260523,-656.0892002,0.00028606,30]
[419110152,1774901260549,-633.19915639,0.00028606,30]
[419110153,1774901260574,-196.0,0.0002863,30]
[419110155,1774901260601,-196.61065588,0.00028652,30]
[419110157,1774901260627,-208.02453531,0.00028652,14]
[419110158,1774901260653,-1017.41,0.00028667,30]
[419110160,1774901260680,-656.0892002,0.00028686,30]
[419110162,1774901260707,-633.19915639,0.00028686,30]
[419110163,1774901260737,-656.0892002,0.00028765,30]
[419110165,1774901260764,-633.19915639,0.00028765,30]
[419110167,1774901260792,-656.0892002,0.00028844,30]
[419110169,1774901260820,-633.19915639,0.00028844,30]
[419110173,1774901260950,-168.51172858,0.00028871,30]
[419110175,1774901260980,-656.0892002,0.00028924,30]
[419110177,1774901261007,-633.19915639,0.00028924,30]
[419110178,1774901261034,-196.61065588,0.00028981,60]
[419110180,1774901261061,-208.02453531,0.00028981,30]
[419110182,1774901261090,-656.0892002,0.00029003,60]
[419110184,1774901261116,-633.19915639,0.00029003,60]
[419110185,1774901261144,-656.0892002,0.00029083,60]
[419110187,1774901261170,-633.19915639,0.00029083,60]
[419110189,1774901261198,-656.0892002,0.00029162,60]
[419110190,1774901261225,-633.19915639,0.00029162,60]
[419110192,1774901261252,-656.0892002,0.00029241,60]
[419110194,1774901261279,-633.19915639,0.00029241,60]
[419110196,1774901261305,-168.51172858,0.00029255,60]
[419110197,1774901261330,-196.61065588,0.00029309,60]
[419110199,1774901261356,-208.02453531,0.00029309,30]
[419110201,1774901261386,-656.0892002,0.00029321,60]
[419110202,1774901261414,-633.19915639,0.00029321,60]
[419110204,1774901261443,-656.0892002,0.000294,60]
[419110206,1774901261471,-633.19915639,0.000294,60]
[419110208,1774901261499,-158.0,0.00029494,30]
[419110209,1774901261526,-155.0,0.00029494,30]
[419110211,1774901261551,-154.0,0.00029494,30]
[419110213,1774901261579,-154.0,0.00029494,30]
[419110214,1774901261605,-1000.0,0.0003,10]
[419110216,1774901261631,-1000.0,0.0003,10]
[419110218,1774901261657,-1000.0,0.0003,10]
[419110219,1774901261684,-1000.0,0.0003,10]
[419110221,1774901261710,-1000.0,0.0003,14]
[419110223,1774901261736,-1000.0,0.0003,14]
[419110225,1774901261764,-1000.0,0.0003,14]
[419110226,1774901261788,-1000.0,0.0003,14]
[419110228,1774901261814,-989.94804873,0.0003,14]
[419110230,1774901261839,-151.0,0.0003,14]
[419110231,1774901261864,-151.0,0.0003,14]
[419110233,1774901261888,-151.0,0.0003,14]
[419110235,1774901261914,-151.0,0.0003,14]
[419110236,1774901261940,-151.0,0.0003,14]
[419110238,1774901261966,-151.0,0.0003,14]
[419110240,1774901261992,-151.0,0.0003,14]
[419110241,1774901262017,-151.0,0.0003,14]
[419110243,1774901262043,-151.0,0.0003,14]
[419110245,1774901262068,-151.0,0.0003,14]
[419110246,1774901262094,-151.0,0.0003,14]
[419110248,1774901262120,-151.0,0.0003,14]
[419110250,1774901262145,-151.0,0.0003,14]
[419110251,1774901262170,-151.0,0.0003,14]
[419110253,1774901262197,-214.49817454,0.0003,14]
[419110255,1774901262223,-1000.0,0.0003,14]
[419110256,1774901262248,-449.90029786,0.0003,14]
[419110258,1774901262274,-180.22181797,0.0003,14]
[419110260,1774901262304,-864.0,0.00030343,30]
[419110262,1774901262330,-158.0,0.00030494,30]
[419110263,1774901262357,-155.0,0.00030494,30]
[419110265,1774901262384,-154.0,0.00030494,30]
[419110267,1774901262408,-154.0,0.00030494,30]
[419110268,1774901262435,-182.0,0.00030822,42]
[419110270,1774901262462,-158.0,0.00031494,30]
[419110272,1774901262488,-155.0,0.00031494,30]
[419110273,1774901262514,-154.0,0.00031494,30]
[419110275,1774901262540,-154.0,0.00031494,30]
[419110277,1774901262566,-615.282891,0.00031556,14]
[419110278,1774901262593,-1071.401318,0.00031703,14]
[419110280,1774901262621,-151.0,0.00031711,30]
[419110282,1774901262649,-1688.872428,0.00031795,14]
[419110284,1774901262676,-160.0,0.00032,14]
[419110286,1774901262703,-171.49,0.00032149,15]
[419110288,1774901262730,-174.55,0.00032149,15]
[419110290,1774901262756,-171.49,0.00032249,15]
[419110291,1774901262783,-174.55,0.00032249,15]
[419110293,1774901262809,-171.49,0.00032349,15]
[419110295,1774901262835,-174.55,0.00032349,15]
[419110296,1774901262862,-171.52142805,0.00032449,15]
[419110298,1774901262888,-174.55433376,0.00032449,15]
[419110300,1774901262915,-158.0,0.00032494,30]
[419110301,1774901262943,-155.0,0.00032494,30]
[419110303,1774901262970,-156.0,0.00032494,30]
[419110305,1774901262997,-154.0,0.00032494,30]
[419110307,1774901263024,-451.0,0.00032602,10]
[419110308,1774901263055,-357.53,0.00032736,15]
[419110310,1774901263085,-357.53,0.00032836,15]
[419110312,1774901263115,-500.0,0.00032877,10]
[419110314,1774901263143,-500.0,0.00032877,12]
[419110315,1774901263169,-1000.0,0.00032877,120]
[419110317,1774901263197,-1000.0,0.000329,120]
[419110319,1774901263225,-1616.0,0.000329,120]
[419110320,1774901263257,-357.53,0.00032936,60]
[419110322,1774901263286,-210.76561135,0.00033,120]
[419110324,1774901263313,-62808.36626071,0.00033,30]
[419110325,1774901263342,-349.66256294,0.00033,120]
[419110327,1774901263369,-299.0,0.00033,14]
[419110329,1774901263400,-357.53,0.00033036,60]
[419110331,1774901263431,-357.53,0.00033136,60]
[419110332,1774901263461,-357.53,0.00033136,60]
[419110334,1774901263488,-451.0,0.0003315,11]
[419110336,1774901263516,-384.45937335,0.000332,117]
[419110337,1774901263548,-357.53,0.00033236,60]
[419110339,1774901263579,-357.53,0.00033236,60]
[419110341,1774901263607,-1017.41,0.00033333,120]
[419110343,1774901263637,-357.53,0.00033336,60]
[419110344,1774901263668,-357.53,0.00033336,60]
[419110345,1774901263813,-1000.0,0.00033377,30]
[419110346,1774901263844,-500.0,0.00033425,14]
[419110347,1774901263875,-357.53,0.00033436,60]
[419110348,1774901263906,-158.0,0.00033494,30]
[419110349,1774901263935,-155.0,0.00033494,30]
[419110350,1774901263964,-154.0,0.00033494,30]
[419110352,1774901263991,-1000.0,0.000335,120]
[419110354,1774901264022,-357.53,0.00033536,60]
[419110355,1774901264050,-172.0,0.00033562,61]
[419110357,1774901264081,-200.0,0.00033587,120]
[419110359,1774901264111,-357.53,0.00033636,60]
[419110361,1774901264141,-451.0,0.00033698,12]
[419110362,1774901264173,-357.53,0.00033736,60]
[419110364,1774901264202,-413287.71883827,0.00033788,60]
[419110366,1774901264231,-1000.0,0.000338,120]
[419110367,1774901264262,-643.2341,0.000338,10]
[419110369,1774901264290,-228.03034577,0.000338,30]
[419110371,1774901264317,-399.4435,0.000338,10]
[419110372,1774901264347,-357.53,0.00033836,60]
[419110374,1774901264374,-1616.0,0.000339,120]
[419110376,1774901264405,-357.53,0.00033936,60]
[419110377,1774901264435,-357.53,0.00034036,60]
[419110379,1774901264463,-1000.0,0.000341,120]
[419110381,1774901264493,-357.53,0.00034136,60]
[419110383,1774901264522,-357.53,0.00034236,60]
[419110384,1774901264550,-451.0,0.00034246,13]
[419110386,1774901264581,-357.53,0.00034336,60]
[419110388,1774901264611,-1000.0,0.000344,120]
[419110389,1774901264642,-357.53,0.00034436,60]
[419110391,1774901264671,-167.4063,0.0003444,30]
[419110393,1774901264699,-2821277.1135,0.0003444,30]
[419110394,1774901264729,-158.0,0.00034494,30]
[419110396,1774901264757,-155.0,0.00034494,30]
[419110398,1774901264785,-154.0,0.00034494,30]
[419110399,1774901264813,-500.0,0.00034521,16]
[419110401,1774901264843,-357.53,0.00034536,60]
[419110403,1774901264875,-357.53,0.00034636,60]
[419110405,1774901264903,-1000.0,0.000347,120]
[419110406,1774901264933,-357.53,0.00034736,60]
[419110408,1774901264961,-671.99,0.00034742,30]
[419110410,1774901264990,-451.0,0.00034794,14]
[419110412,1774901265020,-357.53,0.00034836,60]
[419110413,1774901265048,-1616.0,0.000349,120]
[419110415,1774901265077,-357.53,0.00034936,60]
[419110417,1774901265104,-163.11,0.00034947,30]
[419110418,1774901265133,-158.0,0.00034989,120]
[419110420,1774901265162,-155.0,0.00034989,120]
[419110421,1774901265191,-162.0,0.00034989,120]
[419110423,1774901265218,-154.0,0.00034989,120]
[419110425,1774901265244,-154.0,0.00034989,120]
[419110427,1774901265296,-558.0,0.0003499,30]
[419110429,1774901265326,-328.0,0.0003499,30]
[419110430,1774901265357,-250.0,0.0003499,37]
[419110432,1774901265388,-170.0,0.00035,120]
[419110434,1774901265420,-1000.0,0.00035,120]
[419110435,1774901265452,-617.14440019,0.00035,120]
[419110437,1774901265481,-40810.35642119,0.00035,120]
[419110439,1774901265513,-880.5,0.00035,30]
[419110441,1774901265546,-7764.09946072,0.00035,30]
[419110442,1774901265578,-207.0,0.00035,120]
[419110444,1774901265609,-786.01,0.00035026,30]
[419110446,1774901265642,-357.53,0.00035036,60]
[419110447,1774901265674,-357.53,0.00035136,60]
[419110449,1774901265709,-357.53,0.00035236,60]
[419110451,1774901265741,-1000.0,0.000353,120]
[419110453,1774901265776,-357.53,0.00035336,60]
[419110454,1774901265807,-451.0,0.00035342,15]
[419110456,1774901265841,-357.53,0.00035436,60]
[419110458,1774901265874,-339.232,0.00035475,30]
[419110460,1774901265909,-170.0,0.000355,120]
[419110461,1774901265941,-357.53,0.00035536,60]
[419110463,1774901265970,-1000.0,0.000356,120]
[419110465,1774901266003,-531.8,0.000356,30]
[419110466,1774901266037,-357.53,0.00035636,60]
[419110468,1774901266067,-615.282891,0.00035672,21]
[419110470,1774901266101,-357.53,0.00035736,60]
[419110471,1774901266136,-357.53,0.00035836,60]
[419110473,1774901266169,-1071.401318,0.00035838,21]
[419110475,1774901266201,-451.0,0.0003589,16]
[419110477,1774901266230,-452.5061,0.000359,120]
[419110478,1774901266261,-170.0,0.000359,120]
[419110480,1774901266290,-1000.0,0.000359,120]
[419110482,1774901266319,-161.3801,0.000359,60]
[419110483,1774901266350,-531.8,0.000359,60]
[419110485,1774901266384,-722.1671,0.000359,120]
[419110487,1774901266414,-1616.0,0.000359,120]
[419110488,1774901266445,-357.53,0.00035936,60]
[419110490,1774901266476,-1688.872428,0.00035943,21]
[419110492,1774901266506,-158.0,0.00035989,120]
[419110493,1774901266539,-155.0,0.00035989,120]
[419110495,1774901266570,-162.0,0.00035989,120]
[419110497,1774901266601,-154.0,0.00035989,120]
[419110498,1774901266633,-154.0,0.00035989,120]
[419110500,1774901266666,-357.53,0.00036036,60]
[419110502,1774901266698,-357.53,0.00036136,60]
[419110503,1774901266728,-1000.0,0.000362,120]
[419110508,1774901266861,-357.53,0.00036236,60]
[419110510,1774901266921,-357.53,0.00036336,60]
[419110511,1774901266950,-170.0,0.000364,120]
[419110513,1774901266979,-357.53,0.00036436,60]
[419110515,1774901267006,-5000.0,0.00036438,120]
[419110516,1774901267034,-451.0,0.00036438,17]
[419110518,1774901267062,-705319.2783,0.0003644,30]
[419110520,1774901267092,-364.3657736,0.00036488,119]
[419110521,1774901267121,-1000.0,0.000365,120]
[419110523,1774901267149,-357.53,0.00036536,60]
[419110524,1774901267180,-357.53,0.00036636,60]
[419110526,1774901267208,-500.0,0.00036712,20]
[419110528,1774901267238,-1000.0,0.00036715,30]
[419110529,1774901267270,-244.0,0.00036715,30]
[419110531,1774901267301,-357.53,0.00036736,60]
[419110533,1774901267328,-1000.0,0.000368,120]
[419110534,1774901267354,-168.0,0.000368,120]
[419110536,1774901267384,-357.53,0.00036836,60]
[419110538,1774901267414,-170.0,0.000369,120]
[419110539,1774901267441,-1616.0,0.000369,120]
[419110541,1774901267470,-357.53,0.00036936,60]
[419110542,1774901267497,-451.0,0.00036986,18]
[419110544,1774901267524,-158.0,0.00036989,120]
[419110546,1774901267550,-155.0,0.00036989,120]
[419110547,1774901267579,-162.0,0.00036989,120]
[419110549,1774901267608,-154.0,0.00036989,120]
[419110550,1774901267636,-154.0,0.00036989,120]
[419110552,1774901267666,-357.53,0.00037036,60]
[419110554,1774901267695,-1000.0,0.000371,120]
[419110555,1774901267725,-357.53,0.00037136,60]
[419110557,1774901267756,-357.53,0.00037236,60]
[419110559,1774901267785,-170.0,0.000373,120]
[419110560,1774901267816,-357.53,0.00037336,60]
[419110562,1774901267846,-171.0,0.00037397,99]
[419110564,1774901267873,-1000.0,0.000374,120]
[419110565,1774901267903,-357.53,0.00037436,60]
[419110567,1774901267931,-200.0,0.00037513,120]
[419110568,1774901267959,-451.0,0.00037534,19]
[419110570,1774901267989,-357.53,0.00037536,60]
[419110572,1774901268019,-357.53,0.00037636,60]
[419110573,1774901268045,-1000.0,0.000377,120]
[419110575,1774901268073,-719.2452,0.000377,120]
[419110576,1774901268103,-357.53,0.00037736,60]
[419110577,1774901268131,-170.0,0.000378,120]
[419110578,1774901268158,-500.0,0.00037808,22]
[419110579,1774901268187,-357.53,0.00037836,60]
[419110580,1774901268214,-1616.0,0.000379,120]
[419110581,1774901268243,-357.53,0.00037936,60]
[419110582,1774901268273,-158.0,0.00037989,120]
[419110583,1774901268302,-155.0,0.00037989,120]
[419110584,1774901268331,-162.0,0.00037989,120]
[419110586,1774901268358,-154.0,0.00037989,120]
[419110587,1774901268386,-154.0,0.00037989,120]
[419110589,1774901268413,-1017.41,0.00038,120]
[419110590,1774901268440,-1000.0,0.00038,120]
[419110592,1774901268469,-197.2867201,0.00038,120]
[419110594,1774901268498,-800.0,0.00038,120]
[419110595,1774901268526,-199.11,0.00038,120]
[419110596,1774901268553,-989.68,0.00038,120]
[419110598,1774901268584,-357.53,0.00038036,60]
[419110600,1774901268614,-451.0,0.00038082,20]
[419110601,1774901268643,-292.25,0.000381,60]
[419110603,1774901268671,-1451.74,0.000381,30]
[419110604,1774901268702,-357.53,0.00038136,60]
[419110606,1774901268731,-170.0,0.000382,120]
[419110607,1774901268761,-357.53,0.00038236,60]
[419110609,1774901268790,-1000.0,0.000383,120]
[419110611,1774901268818,-357.53,0.00038336,60]
[419110612,1774901268846,-225.20923235,0.00038356,120]
[419110614,1774901268877,-357.53,0.00038436,120]
[419110615,1774901268905,-209.07,0.000385,120]
[419110617,1774901268935,-357.53,0.00038536,120]
[419110618,1774901268962,-451.0,0.0003863,21]
[419110620,1774901268992,-357.53,0.00038636,120]
[419110622,1774901269021,-170.0,0.000387,120]
[419110623,1774901269050,-357.53,0.00038736,120]
[419110625,1774901269079,-14914.19550099,0.00038875,60]
[419110626,1774901269106,-7457.0977505,0.00038875,60]
[419110628,1774901269133,-7457.0977505,0.00038875,60]
[419110630,1774901269161,-7457.0977505,0.00038875,60]